Cogmind - Beta 10.2 @@@ ROGUE MODE // 2021.05.04 @ 17:42:07 Player: ptdel Result: Destroyed by G-47 Trooper with Particle Gun Performance ------------- Evolutions (0) 0 Regions Visited (4) 800 Robots Destroyed (16) 80 Value Destroyed (487) 487 Prototype IDs (4) 80 Alien Tech Used (0) 0 Bonus (0) 0 TOTAL SCORE: 1447 Bonus ------- None Cogmind --------- Core Integrity 0/250 Matter 284/300 Energy 250/250 System Corruption 0% Temperature Cool (9) Movement Rolling (110) Ox1 Location -9/Mines Parts ------- > --- POWER (1) -------- Ion Engine > --- PROPULSION (2) --- Compact Wheel Compact Wheel > --- UTILITY (2) ------ High-capacity Storage Unit Power Shielding > --- WEAPON (2) ------- Beam Cannon Rocket Launcher > --- INVENTORY (12) --- Light Ion Engine Light Nuclear Core Flight Unit Flight Unit Flight Unit Improved Heat Sink Makeshift System Restoration Module Makeshift Hammer Heavy Explosive Trap Heavy Explosive Trap Heavy Explosive Trap Heavy Explosive Trap Peak State ------------ > --- POWER ------------ Ion Engine > --- PROPULSION ------- Compact Wheel Compact Wheel > --- UTILITY ---------- High-capacity Storage Unit Improved Targeting Computer > --- WEAPON ----------- Shotgun Shotgun > --- INVENTORY -------- Light Ion Engine Light Nuclear Core Compact Wheel Compact Wheel Flight Unit Flight Unit Flight Unit Improved Heat Sink Improved Heat Sink Assault Rifle Assault Rifle Heavy Explosive Trap [Rating: 12] Favorites ----------- Power Ion Engine Engine Ion Engine Propulsion Compact Wheel Treads Light Treads Wheel Compact Wheel Utility High-capacity Storage Unit Storage High-capacity Storage Unit Processor Improved Targeting Computer Protection Power Shielding Weapon Shotgun Energy Cannon Beam Cannon Ballistic Gun Shotgun Launcher Rocket Launcher Build | -11 -10 -10 -10 -9 ------- Run | Scr Mat Min Exi Min Slots Evolved . | . . . . . Power . | . . . . . Propulsion . | . . . . . Utility . | . . . . . Weapon . | . . . . . Parts Attached 23 | 6 8 8 1 . Power 4 | 1 1 1 1 . Engine 4 | 1 1 1 1 . Core . | . . . . . Reactor . | . . . . . Propulsion 6 | 2 2 2 . . Treads 2 | 2 . . . . Leg . | . . . . . Wheel 4 | . 2 2 . . Hover . | . . . . . Flight . | . . . . . Utility 5 | 1 3 1 . . Device . | . . . . . Storage 3 | 1 2 . . . Processor 1 | . 1 . . . Hackware . | . . . . . Protection 1 | . . 1 . . Artifact . | . . . . . Weapon 8 | 2 2 4 . . Energy Gun . | . . . . . Energy Cannon 1 | . . 1 . . Ballistic Gun 6 | 2 2 2 . . Ballistic Cannon . | . . . . . Launcher 1 | . . 1 . . Special Weapon . | . . . . . Impact Weapon . | . . . . . Slashing Weapon . | . . . . . Piercing Weapon . | . . . . . Special Melee Weapon . | . . . . . Unidentified Prototypes . | . . . . . Parts Lost 2 | . . 2 . . Power 1 | . . 1 . . Propulsion 1 | . . 1 . . Utility . | . . . . . Weapon . | . . . . . Highest Loss Streak 2 | . . 2 . . Average Slot Usage (%) 98 | . 99 95 100 100 Engine 13 | . 14 12 14 14 Treads 7 | . 16 . . . Wheel 19 | . 11 26 28 28 Storage 14 | . 14 14 14 14 Processor 8 | . 13 9 . . Protection 5 | . . 4 14 14 Energy Cannon 5 | . . 4 14 14 Ballistic Gun 17 | . 28 18 . . Launcher 5 | . . 4 14 14 Naked Turns . | . . . . . Heaviest Build 45 | 12 43 43 45 45 Greatest Support 40 | 40 40 32 32 32 Greatest Overweight (x) 2 | . 1 2 1 1 Average Overweight (x) . | . . 1 1 1 Largest Inventory Capacity 12 | 6 12 12 12 12 Average Capacity 10 | 5 8 12 12 12 Most Carried 12 | 4 11 12 12 12 Average Carried 8 | 3 7 9 10 12 Final Capacity 12 | 6 12 12 12 12 Final Carried 12 | 4 11 9 12 12 Class Distribution -------------------- 98% | Mutant Dominant Class ---------------- Mutant | -10/Materials Mutant | -10/Mines Mutant | -10/Exiles Mutant | -9/Mines Resources | -11 -10 -10 -10 -9 ----------- Run | Scr Mat Min Exi Min Matter Collected 744 | 219 410 71 . 44 Remotely . | . . . . . Salvage Created 509 | . 419 90 . . Parts 34 | . 32 2 . . Haulers Intercepted . | . . . . . Recyclers Shooed . | . . . . . Parts Field Recycled . | . . . . . Retrieved Matter . | . . . . . Parts Self-Destructed . | . . . . . Prevented . | . . . . . Kills | -11 -10 -10 -10 -9 ------- Run | Scr Mat Min Exi Min Combat Hostiles Destroyed 15 | . 13 2 . . Guns 15 | . 13 2 . . Classes Destroyed 4 | . 3 1 . . Worker 1 | . 1 . . . Swarmer 3 | . 3 . . . Grunt 10 | . 10 . . . Sentry 2 | . . 2 . . Best Kill Streak 4 | . 4 2 . . Combat Bots Only 4 | . 4 2 . . Max Kills in Single Turn 1 | . 1 1 . . Gunslinging . | . . . . . Exploded . | . . . . . Melee . | . . . . . Uniques/NPCs Destroyed . | . . . . . Combat | -11 -10 -10 -10 -9 -------- Run | Scr Mat Min Exi Min Damage Taken 862 | . 475 370 . 17 Core 251 | . 107 127 . 17 Absorbed by Shields . | . . . . . Core Remaining (%) 100 | 100 . . . . Volleys Fired 46 | . 37 9 . . Largest 2 | . 2 2 . . Hottest 46 | . 46 40 . . Shots Fired 92 | . 74 18 . . Gun 92 | . 74 18 . . Cannon . | . . . . . Launcher . | . . . . . Special . | . . . . . Kinetic 92 | . 74 18 . . Thermal . | . . . . . Explosive . | . . . . . Electromagnetic . | . . . . . Robot Hit Streak 19 | . 19 19 . . Robot Miss Streak 4 | . 4 . . . Penetration Max . | . . . . . Secondary Targets 3 | . 2 1 . . Max Gunslinging Chain 1 | . 1 1 . . Shots Hit Robots 78 | . 61 17 . . Core Hits 33 | . 29 4 . . Critical Hits . | . . . . . Critical Kills . | . . . . . Critical Parts Destroyed . | . . . . . Melee Attacks . | . . . . . Impact . | . . . . . Slashing . | . . . . . Piercing . | . . . . . Sneak Attacks . | . . . . . Combat Hostiles . | . . . . . Follow-up Attacks . | . . . . . Damage Inflicted 996 | . 780 216 . . Guns 989 | . 779 210 . . Cannons . | . . . . . Explosions . | . . . . . Melee . | . . . . . Ramming 7 | . 1 6 . . Kinetic 989 | . 779 210 . . Thermal . | . . . . . Explosive . | . . . . . Electromagnetic . | . . . . . Impact . | . . . . . Slashing . | . . . . . Piercing . | . . . . . Highest Corruption . | . . . . . Average Corruption . | . . . . . Corruption Purged . | . . . . . Overload Shots . | . . . . . Overflow Damage . | . . . . . Projectiles . | . . . . . Explosions . | . . . . . Melee . | . . . . . Knockbacks . | . . . . . Impact . | . . . . . Kinetic . | . . . . . Secondary . | . . . . . Self-Inflicted Damage 3 | . . 3 . . Shots . | . . . . . Rammed 2 | . 1 1 . . Targets Rammed 2 | . 1 1 . . Kicked . | . . . . . Crushed . | . . . . . Highest Temperature 4 | . 4 4 . . Average Temperature 2 | . 2 2 . . Received Heat Transfer 354 | . 219 126 . 9 Siege Activations . | . . . . . Robots Corrupted . | . . . . . Combat Hostiles . | . . . . . Parts Fried . | . . . . . Impact Corruptions . | . . . . . Robots Melted . | . . . . . Combat Hostiles . | . . . . . Parts Melted . | . . . . . Heat Transferred . | . . . . . Parts Sabotaged . | . . . . . Parts Stolen . | . . . . . Parts Stripped . | . . . . . Power Chain Reactions . | . . . . . Missiles Intercepted . | . . . . . Alert | -11 -10 -10 -10 -9 ------- Run | Scr Mat Min Exi Min Peak Influence 195 | . 195 95 . . Initial 60 | . . 60 . . Average 55 | . 65 50 . . Maximum Alert Level . | . . . . . Low Security (%) 100 | 100 100 100 . 100 Level 1 . | . . . . . Level 2 . | . . . . . Level 3 . | . . . . . Level 4 . | . . . . . Level 5 . | . . . . . High Security . | . . . . . Max Security . | . . . . . Squads Dispatched 3 | . 3 . . . Investigation . | . . . . . Extermination . | . . . . . Reinforcement 3 | . 3 . . . Assault . | . . . . . Garrison . | . . . . . Intercept . | . . . . . Construction Impeded . | . . . . . Haulers Reinforced . | . . . . . Stealth | -11 -10 -10 -10 -9 --------- Run | Scr Mat Min Exi Min Distress Signals 2 | . 2 . . . Communications Jammed . | . . . . . Distress Signals . | . . . . . Times Spotted 35 | . 28 2 . 5 Peak Tracking Total 6 | . 6 2 . 2 Tactical Retreats . | . . . . . Traps | -11 -10 -10 -10 -9 ------- Run | Scr Mat Min Exi Min Traps Triggered 1 | . 1 . . . Indirectly . | . . . . . Trap Hack Attempts . | . . . . . Triggered . | . . . . . Disarmed . | . . . . . Reprogrammed . | . . . . . Reused 1 | . . 1 . . Traps Extracted . | . . . . . Installed 1 | . . 1 . . Triggered 1 | . . 1 . . Machines | -11 -10 -10 -10 -9 ---------- Run | Scr Mat Min Exi Min Machines Disabled . | . . . . . Max in Single Turn . | . . . . . Machines Sabotaged . | . . . . . Garrisons Compromised . | . . . . . Overloaded Fab Kills . | . . . . . Fab Network Shutdowns . | . . . . . Hacking | -11 -10 -10 -10 -9 --------- Run | Scr Mat Min Exi Min Machines Accessed 11 | . 7 . 4 . Terminals 4 | . 4 . . . Fabricators . | . . . . . Repair Stations 1 | . 1 . . . Recycling Units 2 | . 2 . . . Scanalyzers . | . . . . . Garrison Access . | . . . . . Total Hacks 69 | . 20 . 49 . Successful 60 | . 11 . 49 . Failed 9 | . 9 . . . Catastrophic 3 | . 3 . . . Database Lockouts . | . . . . . Manual 7 | . 7 . . . Terminals 13 | . 13 . . . Fabricators . | . . . . . Repair Stations 3 | . 3 . . . Recycling Units 4 | . 4 . . . Scanalyzers . | . . . . . Garrison Access . | . . . . . Terminal Hacks 55 | . 6 . 49 . Record 51 | . 2 . 49 . Prototype ID Bank 2 | . 2 . . . Branch Access Points 1 | . 1 . . . Unreport Threat 1 | . 1 . . . Fabricator Hacks . | . . . . . Repair Station Hacks 3 | . 3 . . . Scan Component 2 | . 2 . . . Repair 1 | . 1 . . . Recycling Unit Hacks 2 | . 2 . . . Recycle Component 1 | . 1 . . . Process 1 | . 1 . . . Scanalyzer . | . . . . . Garrison Access Hacks . | . . . . . Unauthorized Hacks . | . . . . . Terminals . | . . . . . Fabricators . | . . . . . Repair Stations . | . . . . . Recycling Units . | . . . . . Scanalyzers . | . . . . . Garrison Access . | . . . . . Data Cores Recovered . | . . . . . Used . | . . . . . Hacking Detections 6 | . 6 . . . Full Trace Events 1 | . 1 . . . Feedback Events . | . . . . . Feedback Blocked . | . . . . . Robot Schematics Acquired . | . . . . . Robots Built . | . . . . . Matter . | . . . . . Time . | . . . . . Total Robot Build Rating . | . . . . . Part Schematics Acquired . | . . . . . Parts Built . | . . . . . Matter . | . . . . . Time . | . . . . . Total Part Build Rating . | . . . . . Parts Repaired 1 | . 1 . . . Time 38 | . 38 . . . Parts Recycled 1 | . 1 . . . Recycled Matter 14 | . 14 . . . Retrieved Matter . | . . . . . Retrieved Components . | . . . . . Parts Scanalyzed . | . . . . . Part Schematics Acquired . | . . . . . Parts Damaged . | . . . . . Bothacking | -11 -10 -10 -10 -9 ------------ Run | Scr Mat Min Exi Min Used RIF Installer . | . . . . . Robots Hacked . | . . . . . Non-combat . | . . . . . Combat . | . . . . . Robot Hacks Applied . | . . . . . Relay Couplers Released . | . . . . . Robots Rewired 4 | . . . 4 . Allies Hacked . | . . . . . Hacks Repelled . | . . . . . Allies | -11 -10 -10 -10 -9 -------- Run | Scr Mat Min Exi Min Total Allies 5 | . . . 4 1 Largest Group 4 | . . . 4 4 Highest-Rated Group 68 | . . . 45 68 Highest-Rated Ally 31 | . . . 21 31 Total Orders . | . . . . . Ally Attacks 2 | . . . . 2 Total Damage 41 | . . . . 41 Kills 2 | . . . . 2 Allies Corrupted . | . . . . . Allies Melted . | . . . . . Intel | -11 -10 -10 -10 -9 ------- Run | Scr Mat Min Exi Min Robot Analysis Total . | . . . . . Derelict Logs Recovered . | . . . . . Drone Launches . | . . . . . Drone Recoveries . | . . . . . Exploration | -11 -10 -10 -10 -9 ------------- Run | Scr Mat Min Exi Min Turns Passed 2498 | 120 1105 572 655 46 Spaces Moved 1737 | 71 633 429 567 37 Core 8 | 8 . . . . Treads 403 | 63 340 . . . Legs . | . . . . . Wheels 1326 | . 293 429 567 37 Hover . | . . . . . Flight . | . . . . . Fastest Speed 50 | 50 100 110 110 110 Average Speed 121 | 147 136 110 110 110 Slowest Speed 160 | 160 160 120 110 110 Overloaded Moves . | . . . . . Propulsion Burnouts . | . . . . . Robots Hopped . | . . . . . Cave-ins Triggered . | . . . . . Exploration Rate (%) 49 | 5 92 46 92 10 Regions Visited 4 Branch Regions 3 Pre-discovered Areas 2 | . . 1 1 . Known Exits Taken 1 | . 1 . . . Unknown Exits Taken 3 | 1 . 1 1 . Scrap Searched . | . . . . . Spaces Dug . | . . . . . Terrain Destroyed . | . . . . . Melee . | . . . . . Projectile . | . . . . . AOE . | . . . . . Terrain Rammed . | . . . . . Walls Destroyed . | . . . . . Machines Disabled . | . . . . . Actions | -11 -10 -10 -10 -9 --------- Run | Scr Mat Min Exi Min Total 2039 | 86 804 510 597 42 Wait 137 | . 94 38 . 5 Move 1733 | 70 632 428 566 37 Hop . | . . . . . Pick Up 47 | 10 21 13 3 . Fast Attach . | . . . . . Attach 11 | 6 1 4 . . Detach . | . . . . . Swap 12 | . 7 4 1 . Drop 23 | . 11 12 . . Fire 46 | . 37 9 . . Melee . | . . . . . Ram 1 | . . 1 . . Kick . | . . . . . Crush 1 | . 1 . . . Escape Stasis . | . . . . . Rewire 27 | . . . 27 . Trap 1 | . . 1 . . Miscellaneous . | . . . . . Route ------- -11/Scrapyard -10/Materials (discovered 4 exits: [*Mat x3] / *Min) -10/Mines (discovered 2 exits: [*Mat] / *Exi) -10/Exiles -9/Mines History --------- Turn | Location | Event 26 | -11/Scrapyard | Discovered new exit (range 16) 121 | -11/Scrapyard | Entered Materials 310 | -10/Materials | Build established: Mutant 404 | -10/Materials | Discovered new exit (range 5) 878 | -10/Materials | Discovered new exit (range 5) 898 | -10/Materials | Identified exit to Mines 1134 | -10/Materials | Repaired Lgt. Nuclear Core 1182 | -10/Materials | Discovered new exit (range 8) 1226 | -10/Materials | Entered Mines 1245 | -10/Mines | Discovered new exit (range 9) 1339 | -10/Mines | Found a hidden stash of uninstalled traps 1375 | -10/Mines | Received a Rocket Launcher from a helpful Derelict 1453 | -10/Mines | Core integrity fell below 50% 1516 | -10/Mines | Core integrity fell below 20% 1741 | -10/Mines | Learned location of Storage (-8) 1791 | -10/Mines | Deemed a non-threat by the Exiles lab entrance 1792 | -10/Mines | Discovered new exit (range 5) 1798 | -10/Mines | Entered Exiles 1798 | -10/Exiles | Found Exiles lab destroyed 2326 | -10/Exiles | Learned location of Zion (-7) 2437 | -10/Exiles | Discovered new exit (range 14) 2453 | -10/Exiles | Entered Mines 2453 | -9/Mines | Accompanied by 3 allies 2454 | -9/Mines | Assembled infested the area 2456 | -9/Mines | Received a Mining Laser from a helpful Derelict 2460 | -9/Mines | Assisted by a Guerilla fighting off Assembled 2499 | -9/Mines | Destroyed by G-47 Trooper with Particle Gun Last Messages --------------- here?" 02454_ ALERT: Infestation in the mines, dispatching Demolisher response squad. 02456_ RP-GZW(g): "And why aren't you carrying a mining laser?! Certainly you don't want THEM to uncover you when the ceiling comes crashing down? Here, take my spare." 02459_ RP-GZW(g): "You're apparently new around these parts, I'll cover you." 02460_ A derelict emerges from the shadows: "You need to get out of here! I've been tracking a group of Assembled to figure out where they're coming from, and they're closing on this area, come on!" 02472_ RP-GZW(g): "Mining lasers are a lot more useful than you might think..." 02472_ 32-6TL(h): "I'll hold them off! Go on ahead or try to find another way!" 02484_ as-76210 destroyed. 02485_ as-79722 destroyed. 02489_ Acquired 17 matter. 02495_ Acquired 14 matter. 02496_ Acquired 13 matter. Map ----- +----------------------------------------------------+ | | | | | | | ?????????????????????????????????????????????????? | | ?????????????????????????????????????????????????? | | ?????????????????????????????????????????????????? | | ?????????????????????????????????????????????????? | | ?????????????????????????????????????????????????? | | ????????????????????????????????????##???????????? | | ??????????????????????????????????## ##??????????? | | ??????????????????????????????????# #??????????? | | ??????????????????????????????????# #??????????? | | ?????????????????????????########## #??????????? | | ?????????????????????????# #??????????? | | ?????????????????????????# ####### #??????????? | | ?????????????????????????# #?????# #??????????? | | ?????????????????????????# ]#?????# #??????????? | | ??????????????????????#??# #????## #??????????? | | ??????????????????????# ## #????# |##??????????? | | ??????????????????????# #????# #???????????? | | ??????????????????????#### #????# #???????????? | | ?????????????????????????# g#????#####???????????? | | ?????????????????????????# ###??????????????????? | | ?????????????????# ??????# #####??????????????? | | ?????????????????# ### #??????????????? | | ????????????# gg g @ #??????????????? | | ????????????# ## #??????????????? | | ?????????????####### #??????????????? | | ???????????????????#$ #??????????????? | | ???????????????????## ;# ####??????????????? | | ????????????????????## ### #?????????????????? | | ?????????????????????## ;#?? #?????????????????? | | ??????????????????????###;#?? #?????????????????? | | ????????????????????????# #?? #?????????????????? | | ????????????????????????##??? #?????????????????? | | ??????????????????????????????" ?????????????????? | | ?????????????????????????????? ?????????????????? | | ??????????????????????????????? ?????????????????? | | ?????????????????????????????????????????????????? | | ?????????????????????????????????????????????????? | | ?????????????????????????????????????????????????? | | ?????????????????????????????????????????????????? | | ?????????????????????????????????????????????????? | | ?????????????????????????????????????????????????? | | ?????????????????????????????????????????????????? | | ?????????????????????????????????????????????????? | | ?????????????????????????????????????????????????? | | ?????????????????????????????????????????????????? | | ?????????????????????????????????????????????????? | | ?????????????????????????????????????????????????? | +----------------------------------------------------+ Best States ------------- Heat Dissipation 25 Energy Generation 10 Energy Capacity 250 Matter Stores 300 Matter Capacity 300 Sight Range 16 Terrain Scan Density 10 Power Shielding 33 Evasion (%) 40 Targeting Accuracy 6 Recoil Reduction 2 Item Schematics ----------------- None Robot Schematics ------------------ None Fabricated ------------ Nothing Alien Tech Used ----------------- None Achievements -------------- A New Friend Challenges ------------ None Game ------ Seed WarpBombRegenerator Manual? 0 Play Time 00:21:46 Cumulative 50.7 hours Start 2021.05.04 @ 17:20:58 End 2021.05.04 @ 17:42:07 Sessions 1 Manual Loads 0 Difficulty Rogue Special Mode None Game No. 67 Rogue 51 Adventurer 15 Explorer 1 Win Type - Total 0 Types 0/0/0/0/0/0/0/0/0 Lore% 24 Gallery% 38 Achievement% 35 Wizard Run 0 Options --------- ASCII 0 Keyboard 0 Movement Numpad Keybinds 0 Fullscreen 1 Font 18/SmallcapsGlow Map View 76x50 Tactical HUD 1 Map Filters NONE Filters NONE Steam 1 RUN: 26b18bdc-4b81-4cd6-8a35-2da4b07f745c